[Event "*** Titled Tuesday Blitz"]
[Site "Chess.com"]
[Date "2020.05.12"]
[Round "6"]
[White "Future2700"]
[Black "AwesomeMango"]
[Result "1-0"]
[WhiteElo "2419"]
[BlackElo "2240"]
[TimeControl "180+1"]
[EndTime "11:06:30 PDT"]
[Termination "Future2700 won by resignation"]

1. e4 {[%clk 0:02:19.6]} 1... c5 {[%clk 0:02:59.5]} 2. Nf3 {[%clk 0:02:18.9]}
2... d6 {[%clk 0:02:59.7]} 3. d4 {[%clk 0:02:19.6]} 3... cxd4 {[%clk 0:03:00.1]}
4. Nxd4 {[%clk 0:02:20.1]} 4... Nf6 {[%clk 0:03:00.4]} 5. Nc3 {[%clk 0:02:20.8]}
5... a6 {[%clk 0:03:00.7]} 6. g3 {[%clk 0:02:21.1]} 6... e5 {[%clk 0:03:00.3]}
7. Nde2 {[%clk 0:02:21.7]} 7... Be7 {[%clk 0:02:59.6]} 8. Bg2 {[%clk 0:02:22.2]}
8... O-O {[%clk 0:02:57.3]} 9. O-O {[%clk 0:02:22.9]} 9... b5 {[%clk 0:02:54.1]}
10. Nd5 {[%clk 0:02:19]} 10... Nbd7 {[%clk 0:02:30.6]} 11. Nec3 {[%clk
0:02:15.8]} 11... Bb7 {[%clk 0:02:30.6]} 12. Be3 {[%clk 0:02:11.4]} 12... Nxd5
{[%clk 0:02:23.5]} 13. Nxd5 {[%clk 0:02:12.3]} 13... Nf6 {[%clk 0:02:21.5]} 14.
Nxf6+ {[%clk 0:02:01.5]} 14... Bxf6 {[%clk 0:02:21]} 15. a4 {[%clk 0:02:01.1]}
15... bxa4 {[%clk 0:02:08.4]} 16. Rxa4 {[%clk 0:01:59.5]} 16... Qd7 {[%clk
0:02:08.6]} 17. c3 {[%clk 0:01:56.4]} 17... Bc6 {[%clk 0:02:01.1]} 18. Ra2
{[%clk 0:01:49.6]} 18... a5 {[%clk 0:02:01.2]} 19. b4 {[%clk 0:01:24.2]} 19...
axb4 {[%clk 0:01:59.6]} 20. Rxa8 {[%clk 0:01:25.1]} 20... Rxa8 {[%clk
0:01:58.7]} 21. cxb4 {[%clk 0:01:25.1]} 21... h6 {[%clk 0:01:48.7]} 22. Qd2
{[%clk 0:01:23.1]} 22... Rb8 {[%clk 0:01:42.2]} 23. Rd1 {[%clk 0:01:18.9]} 23...
Be7 {[%clk 0:01:39.5]} 24. Rb1 {[%clk 0:01:18.4]} 24... Qc7 {[%clk 0:01:33.7]}
25. Qc2 {[%clk 0:00:49.3]} 25... Qd7 {[%clk 0:01:26]} 26. Rc1 {[%clk 0:00:45.5]}
26... Ba4 {[%clk 0:01:20.9]} 27. Qc3 {[%clk 0:00:40.6]} 27... Bg5 {[%clk
0:01:16.6]} 28. Bxg5 {[%clk 0:00:29.2]} 28... hxg5 {[%clk 0:01:16.6]} 29. Bf1
{[%clk 0:00:24.1]} 29... Bb5 {[%clk 0:01:11.4]} 30. Rd1 {[%clk 0:00:19.2]} 30...
Bxf1 {[%clk 0:01:09.6]} 31. Rxf1 {[%clk 0:00:19.3]} 31... Qb5 {[%clk 0:01:09.3]}
32. Rb1 {[%clk 0:00:19.7]} 32... Qb6 {[%clk 0:01:06]} 33. b5 {[%clk 0:00:19.3]}
33... g4 {[%clk 0:00:47.1]} 34. Kg2 {[%clk 0:00:19]} 34... g6 {[%clk 0:00:45.1]}
35. Qd3 {[%clk 0:00:18.5]} 35... Qc5 {[%clk 0:00:44.2]} 36. Qe2 {[%clk
0:00:17.5]} 36... Kg7 {[%clk 0:00:41.7]} 37. Qd3 {[%clk 0:00:14]} 37... Rb6
{[%clk 0:00:39.5]} 38. Qe3 {[%clk 0:00:11.6]} 38... Qxe3 {[%clk 0:00:38.1]} 39.
fxe3 {[%clk 0:00:12.5]} 39... f5 {[%clk 0:00:38.2]} 40. exf5 {[%clk 0:00:12]}
40... gxf5 {[%clk 0:00:38.5]} 41. Kf2 {[%clk 0:00:12.9]} 41... Kf6 {[%clk
0:00:38.8]} 42. Ke2 {[%clk 0:00:13.8]} 42... d5 {[%clk 0:00:39.1]} 43. Kd3
{[%clk 0:00:14.7]} 43... Ke6 {[%clk 0:00:39.4]} 44. Kc3 {[%clk 0:00:15.2]} 44...
Kd6 {[%clk 0:00:39.7]} 45. Kb4 {[%clk 0:00:16.1]} 45... d4 {[%clk 0:00:38.2]}
46. exd4 {[%clk 0:00:16.1]} 46... exd4 {[%clk 0:00:38.4]} 47. Kc4 {[%clk
0:00:16.9]} 47... Rb8 {[%clk 0:00:36.6]} 48. Kxd4 {[%clk 0:00:16.6]} 48... Rh8
{[%clk 0:00:36.5]} 49. Rb2 {[%clk 0:00:17]} 49... Rb8 {[%clk 0:00:34.5]} 50. b6
{[%clk 0:00:17.3]} 50... Rb7 {[%clk 0:00:34.8]} 51. Ke3 {[%clk 0:00:17.1]} 51...
Ke5 {[%clk 0:00:33.9]} 52. Rb5+ {[%clk 0:00:17.4]} 52... Kf6 {[%clk 0:00:34]}
53. Kf4 {[%clk 0:00:18]} 53... Re7 {[%clk 0:00:32.4]} 54. Rxf5+ {[%clk
0:00:17.9]} 54... Kg6 {[%clk 0:00:32]} 55. Rg5+ {[%clk 0:00:18.5]} 55... Kf6
{[%clk 0:00:32]} 56. Rf5+ {[%clk 0:00:18.6]} 56... Kg6 {[%clk 0:00:31.3]} 57.
Kxg4 {[%clk 0:00:19.3]} 57... Re4+ {[%clk 0:00:31.2]} 58. Rf4 {[%clk 0:00:19.7]}
58... Re6 {[%clk 0:00:31.6]} 59. Rb4 {[%clk 0:00:20.1]} 59... Re8 {[%clk
0:00:31.5]} 60. b7 {[%clk 0:00:20.7]} 60... Rb8 {[%clk 0:00:31.5]} 61. Rb6+
{[%clk 0:00:20.8]} 61... Kg7 {[%clk 0:00:31.2]} 62. h4 {[%clk 0:00:21.4]} 1-0

[Event "*** Titled Tuesday Blitz"]
[Site "Chess.com"]
[Date "2020.05.12"]
[Round "6"]
[White "SGchess01"]
[Black "DrVitman"]
[Result "1/2-1/2"]
[WhiteElo "2761"]
[BlackElo "2558"]
[TimeControl "180+1"]
[EndTime "11:06:31 PDT"]
[Termination "Game drawn by repetition"]

1. Nf3 {[%clk 0:03:00.9]} 1... Nf6 {[%clk 0:01:12.9]} 2. c4 {[%clk 0:02:59.1]}
2... g6 {[%clk 0:01:12.9]} 3. Nc3 {[%clk 0:02:59.1]} 3... d5 {[%clk 0:01:12.7]}
4. g3 {[%clk 0:03:00]} 4... dxc4 {[%clk 0:01:12.3]} 5. Bg2 {[%clk 0:02:58.9]}
5... c6 {[%clk 0:01:12.2]} 6. a4 {[%clk 0:02:56.7]} 6... Bg7 {[%clk 0:01:10.3]}
7. O-O {[%clk 0:02:55.7]} 7... a5 {[%clk 0:01:03.4]} 8. b3 {[%clk 0:02:55]} 8...
cxb3 {[%clk 0:01:02.9]} 9. Qxb3 {[%clk 0:02:55.9]} 9... O-O {[%clk 0:01:03]} 10.
Ba3 {[%clk 0:02:53.9]} 10... Na6 {[%clk 0:01:02.7]} 11. d4 {[%clk 0:02:52.2]}
11... Nb4 {[%clk 0:01:02.8]} 12. Bxb4 {[%clk 0:02:51]} 12... axb4 {[%clk
0:01:03.7]} 13. Qxb4 {[%clk 0:02:51.9]} 13... Re8 {[%clk 0:00:59.7]} 14. a5
{[%clk 0:02:49.1]} 14... Nd5 {[%clk 0:00:58.6]} 15. Nxd5 {[%clk 0:02:48.9]}
15... Qxd5 {[%clk 0:00:59.5]} 16. e3 {[%clk 0:02:46.1]} 16... Qd6 {[%clk
0:00:58.3]} 17. Qc3 {[%clk 0:02:06]} 17... e5 {[%clk 0:00:55.5]} 18. dxe5 {[%clk
0:02:04.1]} 18... Bxe5 {[%clk 0:00:56.4]} 19. Nxe5 {[%clk 0:02:04.5]} 19... Qxe5
{[%clk 0:00:57.2]} 20. Qb4 {[%clk 0:02:01.8]} 20... Qe7 {[%clk 0:00:54.2]} 21.
Qc3 {[%clk 0:01:53.4]} 21... Qe5 {[%clk 0:00:53.7]} 22. Qb4 {[%clk 0:01:38.6]}
22... Qe7 {[%clk 0:00:53.4]} 23. Qf4 {[%clk 0:01:39.1]} 23... Qe5 {[%clk
0:00:52]} 24. Qa4 {[%clk 0:01:24.2]} 24... Bf5 {[%clk 0:00:51.2]} 25. Rfc1
{[%clk 0:01:22.4]} 25... Be4 {[%clk 0:00:49.3]} 26. Bxe4 {[%clk 0:01:14.6]}
26... Qxe4 {[%clk 0:00:50.2]} 27. Qb3 {[%clk 0:01:14.7]} 27... Re7 {[%clk
0:00:43.6]} 28. Rc4 {[%clk 0:01:11.5]} 28... Qe5 {[%clk 0:00:43.4]} 29. Qa3
{[%clk 0:00:56.3]} 29... Kg7 {[%clk 0:00:35.3]} 30. Rc5 {[%clk 0:00:55.6]} 30...
Qf6 {[%clk 0:00:34.1]} 31. Rb1 {[%clk 0:00:53.7]} 31... Re5 {[%clk 0:00:31.1]}
32. Rxb7 {[%clk 0:00:51.2]} 32... Rxc5 {[%clk 0:00:30.8]} 33. Qxc5 {[%clk
0:00:52]} 33... Qa1+ {[%clk 0:00:30.7]} 34. Kg2 {[%clk 0:00:52.4]} 34... Rxa5
{[%clk 0:00:25.8]} 35. Qxc6 {[%clk 0:00:48.6]} 35... Qf6 {[%clk 0:00:25.5]} 36.
Qc7 {[%clk 0:00:37.5]} 36... Ra2 {[%clk 0:00:22]} 37. Qf4 {[%clk 0:00:30.3]}
37... Qxf4 {[%clk 0:00:22]} 38. gxf4 {[%clk 0:00:31.2]} 38... Ra4 {[%clk
0:00:18.7]} 39. h4 {[%clk 0:00:31.3]} 39... Ra5 {[%clk 0:00:15.7]} 40. Kf3
{[%clk 0:00:31.1]} 40... Ra1 {[%clk 0:00:15.6]} 41. e4 {[%clk 0:00:26.6]} 41...
Rh1 {[%clk 0:00:15.4]} 42. Kg3 {[%clk 0:00:26.2]} 42... Rg1+ {[%clk 0:00:15.6]}
43. Kh2 {[%clk 0:00:26.6]} 43... Rg4 {[%clk 0:00:14.8]} 44. f3 {[%clk
0:00:26.6]} 44... Rxf4 {[%clk 0:00:13.2]} 45. Kg3 {[%clk 0:00:27]} 45... Rf6
{[%clk 0:00:13.3]} 46. f4 {[%clk 0:00:27.3]} 46... Ra6 {[%clk 0:00:12.8]} 47.
Kg4 {[%clk 0:00:27.5]} 47... h5+ {[%clk 0:00:12.5]} 48. Kf3 {[%clk 0:00:27.9]}
48... Ra3+ {[%clk 0:00:12.1]} 49. Kg2 {[%clk 0:00:28.3]} 49... Ra2+ {[%clk
0:00:12]} 50. Kf3 {[%clk 0:00:28.6]} 50... Ra3+ {[%clk 0:00:12.4]} 51. Kg2
{[%clk 0:00:28.6]} 51... Ra2+ {[%clk 0:00:12.8]} 52. Kf3 {[%clk 0:00:29.2]}
52... Ra3+ {[%clk 0:00:13.2]} 1/2-1/2

[Event "*** Titled Tuesday Blitz"]
[Site "Chess.com"]
[Date "2020.05.12"]
[Round "6"]
[White "TigrVShlyape"]
[Black "gahryman"]
[Result "0-1"]
[WhiteElo "2814"]
[BlackElo "2650"]
[TimeControl "180+1"]
[EndTime "11:06:32 PDT"]
[Termination "gahryman won by resignation"]

1. d4 {[%clk 0:03:00.9]} 1... Nf6 {[%clk 0:02:59.4]} 2. Nf3 {[%clk 0:03:01]}
2... g6 {[%clk 0:02:59.1]} 3. c3 {[%clk 0:02:59.6]} 3... Bg7 {[%clk 0:02:57.1]}
4. Bf4 {[%clk 0:02:56.9]} 4... O-O {[%clk 0:02:55.4]} 5. Nbd2 {[%clk 0:02:55.6]}
5... d6 {[%clk 0:02:56.3]} 6. h3 {[%clk 0:02:53]} 6... Nc6 {[%clk 0:02:56.2]} 7.
e4 {[%clk 0:02:52.6]} 7... Nh5 {[%clk 0:02:47.6]} 8. Be3 {[%clk 0:02:46.6]} 8...
e5 {[%clk 0:02:47]} 9. dxe5 {[%clk 0:02:44.3]} 9... Nxe5 {[%clk 0:02:42.7]} 10.
Nxe5 {[%clk 0:02:43.1]} 10... dxe5 {[%clk 0:02:43.6]} 11. Nc4 {[%clk 0:02:39.6]}
11... Qe7 {[%clk 0:02:42.4]} 12. g3 {[%clk 0:02:23.3]} 12... Be6 {[%clk
0:02:39.1]} 13. Be2 {[%clk 0:02:07.7]} 13... Rad8 {[%clk 0:02:25.2]} 14. Qc2
{[%clk 0:02:06.4]} 14... f5 {[%clk 0:02:23.5]} 15. exf5 {[%clk 0:01:55.4]} 15...
gxf5 {[%clk 0:02:16.9]} 16. Bxa7 {[%clk 0:00:50.1]} 16... b6 {[%clk 0:01:48.6]}
17. Qa4 {[%clk 0:00:42.5]} 17... Qg5 {[%clk 0:01:24.5]} 18. h4 {[%clk
0:00:36.3]} 18... Qg6 {[%clk 0:01:23.9]} 19. Qc6 {[%clk 0:00:29.3]} 19... Nxg3
{[%clk 0:01:18.1]} 20. Rg1 {[%clk 0:00:26.1]} 20... f4 {[%clk 0:01:18.1]} 21. h5
{[%clk 0:00:22.4]} 21... Qf7 {[%clk 0:01:14]} 22. h6 {[%clk 0:00:20.6]} 22...
Bf6 {[%clk 0:01:07.1]} 23. fxg3 {[%clk 0:00:20.5]} 23... Kh8 {[%clk 0:01:07.5]}
24. gxf4 {[%clk 0:00:20.1]} 24... Bh4+ {[%clk 0:01:06.7]} 25. Kf1 {[%clk
0:00:11.4]} 25... Qxf4+ {[%clk 0:01:06.3]} 26. Qf3 {[%clk 0:00:09.2]} 26...
Qxf3+ {[%clk 0:01:01]} 27. Bxf3 {[%clk 0:00:09.2]} 27... Rxf3+ {[%clk
0:01:01.3]} 28. Ke2 {[%clk 0:00:07.8]} 28... Rf2+ {[%clk 0:00:58.4]} 29. Ke3
{[%clk 0:00:08.1]} 29... Bxc4 {[%clk 0:00:58]} 30. Rae1 {[%clk 0:00:06.2]} 30...
Rf4 {[%clk 0:00:51.6]} 31. Re2 {[%clk 0:00:03.5]} 31... Bxe2 {[%clk 0:00:50.9]}
32. Kxe2 {[%clk 0:00:03.9]} 32... Rg8 {[%clk 0:00:44.6]} 33. Rd1 {[%clk
0:00:02.7]} 33... Bg5 {[%clk 0:00:41]} 34. Rd7 {[%clk 0:00:01.3]} 34... Bxh6
{[%clk 0:00:36.9]} 35. Rxc7 {[%clk 0:00:01.2]} 35... Rf6 {[%clk 0:00:35.1]} 36.
Kd3 {[%clk 0:00:01.1]} 36... e4+ {[%clk 0:00:34.5]} 37. Kxe4 {[%clk 0:00:01.2]}
37... Re6+ {[%clk 0:00:34.3]} 38. Kd5 {[%clk 0:00:01.5]} 38... Reg6 {[%clk
0:00:33.1]} 39. a4 {[%clk 0:00:02.4]} 39... Rg5+ {[%clk 0:00:33.2]} 40. Kc6
{[%clk 0:00:02.4]} 40... Rc5+ {[%clk 0:00:32.3]} 41. Kb7 {[%clk 0:00:02.6]}
41... Rxc7+ {[%clk 0:00:33.2]} 42. Kxc7 {[%clk 0:00:03.4]} 42... Be3 {[%clk
0:00:32.8]} 43. Kb7 {[%clk 0:00:03]} 43... Rg7+ {[%clk 0:00:32.7]} 44. Ka6
{[%clk 0:00:03.3]} 44... Rxa7+ {[%clk 0:00:33.1]} 45. Kxa7 {[%clk 0:00:03.5]}
45... b5+ {[%clk 0:00:34]} 46. Ka6 {[%clk 0:00:04.4]} 46... bxa4 {[%clk
0:00:34.8]} 47. Kb5 {[%clk 0:00:05.2]} 47... h5 {[%clk 0:00:35.3]} 48. Kxa4
{[%clk 0:00:05]} 48... h4 {[%clk 0:00:35.8]} 49. b4 {[%clk 0:00:04.8]} 49... h3
{[%clk 0:00:35.8]} 0-1

[Event "*** Titled Tuesday Blitz"]
[Site "Chess.com"]
[Date "2020.05.12"]
[Round "6"]
[White "Lunow"]
[Black "mfwagnerpeixoto"]
[Result "1-0"]
[WhiteElo "2086"]
[BlackElo "2237"]
[TimeControl "180+1"]
[EndTime "11:06:32 PDT"]
[Termination "Lunow won on time"]

1. c4 {[%clk 0:03:00.9]} 1... Nf6 {[%clk 0:02:58.4]} 2. g3 {[%clk 0:03:00.6]}
2... e6 {[%clk 0:02:58.8]} 3. Bg2 {[%clk 0:02:57.9]} 3... d5 {[%clk 0:02:59.2]}
4. Nf3 {[%clk 0:02:57.9]} 4... dxc4 {[%clk 0:02:55.4]} 5. Qa4+ {[%clk
0:02:53.3]} 5... Bd7 {[%clk 0:02:54]} 6. Qxc4 {[%clk 0:02:53.2]} 6... Bc6 {[%clk
0:02:54.4]} 7. Qc2 {[%clk 0:02:47.4]} 7... Be7 {[%clk 0:02:51.2]} 8. O-O {[%clk
0:02:44.4]} 8... O-O {[%clk 0:02:50.4]} 9. Nc3 {[%clk 0:02:41.3]} 9... a5 {[%clk
0:02:48.6]} 10. e4 {[%clk 0:02:35.8]} 10... Na6 {[%clk 0:02:41.2]} 11. d4 {[%clk
0:02:31.1]} 11... Nb4 {[%clk 0:02:35.7]} 12. Qe2 {[%clk 0:02:28.5]} 12... a4
{[%clk 0:02:12.2]} 13. a3 {[%clk 0:02:23.8]} 13... Na6 {[%clk 0:02:11.5]} 14.
Rd1 {[%clk 0:02:22]} 14... Qe8 {[%clk 0:02:06.4]} 15. Ne5 {[%clk 0:02:04.6]}
15... Rd8 {[%clk 0:01:45.9]} 16. Be3 {[%clk 0:02:03.9]} 16... Nd7 {[%clk
0:01:23.1]} 17. Nxc6 {[%clk 0:01:58.7]} 17... bxc6 {[%clk 0:01:24]} 18. Qxa6
{[%clk 0:01:50.3]} 18... Rb8 {[%clk 0:01:19.8]} 19. Rd2 {[%clk 0:01:43.5]} 19...
Nb6 {[%clk 0:01:11.8]} 20. Rc1 {[%clk 0:01:37.3]} 20... Qd7 {[%clk 0:01:00.5]}
21. Qe2 {[%clk 0:01:36]} 21... Rfd8 {[%clk 0:00:57.1]} 22. Qd1 {[%clk
0:01:34.1]} 22... Ra8 {[%clk 0:00:55.3]} 23. Qe2 {[%clk 0:01:30.9]} 23... Bf8
{[%clk 0:00:52.9]} 24. Na2 {[%clk 0:01:22.8]} 24... Qe8 {[%clk 0:00:46.6]} 25.
Rdc2 {[%clk 0:01:19.4]} 25... e5 {[%clk 0:00:41.3]} 26. d5 {[%clk 0:01:11.9]}
26... cxd5 {[%clk 0:00:37.6]} 27. Bxb6 {[%clk 0:01:05.1]} 27... cxb6 {[%clk
0:00:38.5]} 28. exd5 {[%clk 0:01:01]} 28... Bc5 {[%clk 0:00:36.5]} 29. Nc3
{[%clk 0:00:57.5]} 29... Bd4 {[%clk 0:00:22.7]} 30. Ne4 {[%clk 0:00:57.1]} 30...
h6 {[%clk 0:00:17.9]} 31. Qg4 {[%clk 0:00:51.2]} 31... Kh8 {[%clk 0:00:14.9]}
32. Qf5 {[%clk 0:00:45.4]} 32... Qf8 {[%clk 0:00:09.2]} 33. d6 {[%clk
0:00:39.6]} 33... Ra7 {[%clk 0:00:07.1]} 34. Rc7 {[%clk 0:00:28.7]} 34... Raa8
{[%clk 0:00:05.6]} 35. Rxf7 {[%clk 0:00:22.3]} 35... Qg8 {[%clk 0:00:05.5]} 36.
Nf6 {[%clk 0:00:01.7]} 1-0

[Event "*** Titled Tuesday Blitz"]
[Site "Chess.com"]
[Date "2020.05.12"]
[Round "6"]
[White "GrafLermontov"]
[Black "DinaBelenkaya"]
[Result "1-0"]
[WhiteElo "2375"]
[BlackElo "2123"]
[TimeControl "180+1"]
[EndTime "11:06:34 PDT"]
[Termination "GrafLermontov won on time"]

1. d4 {[%clk 0:03:00.9]} 1... Nf6 {[%clk 0:02:56.2]} 2. c4 {[%clk 0:03:01]} 2...
e6 {[%clk 0:02:54]} 3. Nf3 {[%clk 0:02:59.5]} 3... Bb4+ {[%clk 0:02:46.1]} 4.
Bd2 {[%clk 0:02:59.3]} 4... a5 {[%clk 0:02:37.6]} 5. g3 {[%clk 0:02:56.9]} 5...
O-O {[%clk 0:02:30.6]} 6. Bg2 {[%clk 0:02:56.7]} 6... d5 {[%clk 0:02:06]} 7. Qc2
{[%clk 0:02:50.2]} 7... Ne4 {[%clk 0:02:02.3]} 8. O-O {[%clk 0:02:31.8]} 8...
Nd7 {[%clk 0:01:57.2]} 9. a3 {[%clk 0:02:24.9]} 9... Bxd2 {[%clk 0:01:56.4]} 10.
Nbxd2 {[%clk 0:02:25.1]} 10... Ndf6 {[%clk 0:01:57]} 11. Ne5 {[%clk 0:02:17.7]}
11... Nxd2 {[%clk 0:01:44.5]} 12. Qxd2 {[%clk 0:02:18.6]} 12... c6 {[%clk
0:01:42.2]} 13. b4 {[%clk 0:02:09.6]} 13... Bd7 {[%clk 0:01:37]} 14. c5 {[%clk
0:01:56.1]} 14... Ne4 {[%clk 0:01:28.8]} 15. Bxe4 {[%clk 0:01:48.6]} 15... dxe4
{[%clk 0:01:28.3]} 16. Nc4 {[%clk 0:01:49.1]} 16... Qc7 {[%clk 0:01:17.7]} 17.
Nd6 {[%clk 0:01:47]} 17... f5 {[%clk 0:01:14.9]} 18. f3 {[%clk 0:01:43.2]} 18...
exf3 {[%clk 0:01:00.2]} 19. exf3 {[%clk 0:01:44.1]} 19... b5 {[%clk 0:00:59.5]}
20. f4 {[%clk 0:01:35]} 20... Be8 {[%clk 0:00:58.1]} 21. Rae1 {[%clk 0:01:30.4]}
21... Rf6 {[%clk 0:00:56.8]} 22. Re3 {[%clk 0:01:27.3]} 22... axb4 {[%clk
0:00:40.5]} 23. axb4 {[%clk 0:01:28.2]} 23... Bd7 {[%clk 0:00:39.6]} 24. Rfe1
{[%clk 0:01:22.4]} 24... Ra4 {[%clk 0:00:39.1]} 25. Qb2 {[%clk 0:01:16]} 25...
Rf8 {[%clk 0:00:37.7]} 26. Qb3 {[%clk 0:01:14.2]} 26... h6 {[%clk 0:00:31.4]}
27. Kg2 {[%clk 0:00:30.8]} 27... Kh7 {[%clk 0:00:30.9]} 28. Kh3 {[%clk
0:00:29.8]} 28... Qd8 {[%clk 0:00:18.4]} 29. Rxe6 {[%clk 0:00:29.9]} 29... Bxe6
{[%clk 0:00:18.1]} 30. Rxe6 {[%clk 0:00:30.8]} 30... Rf6 {[%clk 0:00:17.2]} 31.
Re8 {[%clk 0:00:29.5]} 31... Qd7 {[%clk 0:00:13.7]} 32. Qg8+ {[%clk 0:00:29.3]}
32... Kg6 {[%clk 0:00:14]} 33. Rd8 {[%clk 0:00:22.8]} 33... Qe7 {[%clk
0:00:12.3]} 34. Ne8 {[%clk 0:00:16.1]} 34... Re6 {[%clk 0:00:09]} 35. Rd6 {[%clk
0:00:13.3]} 35... Rxd6 {[%clk 0:00:08.4]} 36. cxd6 {[%clk 0:00:12.8]} 36... Qf7
{[%clk 0:00:05.3]} 37. Qh8 {[%clk 0:00:07.7]} 37... Ra7 {[%clk 0:00:03.7]} 38.
Nc7 {[%clk 0:00:07.2]} 38... Rb7 {[%clk 0:00:02.2]} 39. Qd8 {[%clk 0:00:07.3]}
39... Ra7 {[%clk 0:00:01.2]} 40. d5 {[%clk 0:00:07.5]} 1-0

[Event "*** Titled Tuesday Blitz"]
[Site "Chess.com"]
[Date "2020.05.12"]
[Round "6"]
[White "ristingho"]
[Black "igorcadilhac"]
[Result "1-0"]
[WhiteElo "2517"]
[BlackElo "2344"]
[TimeControl "180+1"]
[EndTime "11:06:35 PDT"]
[Termination "ristingho won by resignation"]

1. d4 {[%clk 0:03:00.9]} 1... Nf6 {[%clk 0:02:59.9]} 2. c4 {[%clk 0:02:58.8]}
2... e6 {[%clk 0:03:00.2]} 3. Nf3 {[%clk 0:02:57.9]} 3... d5 {[%clk 0:02:59.7]}
4. Nc3 {[%clk 0:02:57.8]} 4... c6 {[%clk 0:02:57.5]} 5. e3 {[%clk 0:02:56.3]}
5... dxc4 {[%clk 0:02:54.3]} 6. Bxc4 {[%clk 0:02:56]} 6... Bb4 {[%clk
0:02:52.8]} 7. O-O {[%clk 0:02:55.2]} 7... Nbd7 {[%clk 0:02:52.7]} 8. e4 {[%clk
0:02:54.8]} 8... Bxc3 {[%clk 0:02:49.4]} 9. bxc3 {[%clk 0:02:54.7]} 9... Nxe4
{[%clk 0:02:49.6]} 10. Qd3 {[%clk 0:02:49.9]} 10... Nef6 {[%clk 0:02:38]} 11.
Ba3 {[%clk 0:02:49]} 11... Qc7 {[%clk 0:02:22.5]} 12. Rfe1 {[%clk 0:02:48.1]}
12... Nd5 {[%clk 0:02:12.3]} 13. Bb3 {[%clk 0:02:32.1]} 13... b6 {[%clk
0:01:58.2]} 14. c4 {[%clk 0:02:28.4]} 14... Nf4 {[%clk 0:01:47.9]} 15. Qe3
{[%clk 0:02:21.6]} 15... Bb7 {[%clk 0:01:42.3]} 16. g3 {[%clk 0:02:17.9]} 16...
Ng6 {[%clk 0:01:04.2]} 17. d5 {[%clk 0:02:08.8]} 17... O-O-O {[%clk 0:01:01.9]}
18. d6 {[%clk 0:02:01.2]} 18... Qb8 {[%clk 0:01:01.5]} 19. c5 {[%clk 0:02:00.9]}
19... Rhe8 {[%clk 0:00:44.8]} 20. Rac1 {[%clk 0:01:55]} 20... b5 {[%clk
0:00:44.6]} 21. Bb2 {[%clk 0:01:51.2]} 21... Nf6 {[%clk 0:00:43.1]} 22. a4
{[%clk 0:01:28.6]} 22... a6 {[%clk 0:00:36.2]} 23. axb5 {[%clk 0:01:27.4]} 23...
axb5 {[%clk 0:00:37.1]} 24. Nd4 {[%clk 0:01:21.3]} 24... Kd7 {[%clk 0:00:36.3]}
25. Nxe6 {[%clk 0:01:07.4]} 25... Nd5 {[%clk 0:00:30.2]} 26. Bxd5 {[%clk
0:00:55]} 26... cxd5 {[%clk 0:00:31.1]} 27. c6+ {[%clk 0:00:45.6]} 27... Bxc6
{[%clk 0:00:31.2]} 28. Nc5+ {[%clk 0:00:32.1]} 28... Kxd6 {[%clk 0:00:31.3]} 29.
Qd4 {[%clk 0:00:17.8]} 29... Rxe1+ {[%clk 0:00:25.2]} 30. Rxe1 {[%clk
0:00:18.7]} 30... Re8 {[%clk 0:00:25.2]} 31. Rxe8 {[%clk 0:00:12.7]} 31... Qxe8
{[%clk 0:00:24.5]} 32. Nd3 {[%clk 0:00:12.4]} 32... Qe4 {[%clk 0:00:20.8]} 33.
Ba3+ {[%clk 0:00:11.9]} 33... Kc7 {[%clk 0:00:20.5]} 34. Qa7+ {[%clk 0:00:11.2]}
34... Bb7 {[%clk 0:00:20.5]} 35. Qc5+ {[%clk 0:00:08]} 35... Bc6 {[%clk
0:00:18]} 36. Qa7+ {[%clk 0:00:07]} 36... Bb7 {[%clk 0:00:18.1]} 37. Nc5 {[%clk
0:00:06.1]} 37... Qe1+ {[%clk 0:00:10.2]} 38. Kg2 {[%clk 0:00:06.4]} 38... Qe4+
{[%clk 0:00:02]} 39. Nxe4 {[%clk 0:00:05.9]} 39... dxe4 {[%clk 0:00:02.9]} 1-0

[Event "*** Titled Tuesday Blitz"]
[Site "Chess.com"]
[Date "2020.05.12"]
[Round "6"]
[White "Igor_Lysyj"]
[Black "Azerichess"]
[Result "0-1"]
[WhiteElo "2789"]
[BlackElo "3044"]
[TimeControl "180+1"]
[EndTime "11:06:36 PDT"]
[Termination "Azerichess won by resignation"]

1. d4 {[%clk 0:02:59.7]} 1... Nf6 {[%clk 0:02:59.4]} 2. c4 {[%clk 0:02:59.4]}
2... d6 {[%clk 0:02:58.7]} 3. Nc3 {[%clk 0:02:58.2]} 3... Nbd7 {[%clk
0:02:59.2]} 4. Nf3 {[%clk 0:02:57.7]} 4... e5 {[%clk 0:02:59.7]} 5. e4 {[%clk
0:02:57.7]} 5... g6 {[%clk 0:02:58.4]} 6. Be2 {[%clk 0:02:57.5]} 6... Bg7 {[%clk
0:02:58]} 7. O-O {[%clk 0:02:57.4]} 7... O-O {[%clk 0:02:57]} 8. Be3 {[%clk
0:02:57.3]} 8... c6 {[%clk 0:02:54]} 9. d5 {[%clk 0:02:54.6]} 9... Ng4 {[%clk
0:02:49.4]} 10. Bg5 {[%clk 0:02:54]} 10... f6 {[%clk 0:02:48.9]} 11. dxc6 {[%clk
0:02:53.9]} 11... bxc6 {[%clk 0:02:48.7]} 12. Qxd6 {[%clk 0:02:53.8]} 12... fxg5
{[%clk 0:02:40.4]} 13. Qxc6 {[%clk 0:02:53.1]} 13... Qb6 {[%clk 0:02:14.9]} 14.
Qxa8 {[%clk 0:02:50.8]} 14... Bb7 {[%clk 0:02:14.4]} 15. c5 {[%clk 0:02:40.8]}
15... Nxc5 {[%clk 0:02:08.9]} 16. Nd5 {[%clk 0:02:29.3]} 16... Rxa8 {[%clk
0:02:06.4]} 17. Nxb6 {[%clk 0:02:28.3]} 17... axb6 {[%clk 0:02:07.3]} 18. Bc4+
{[%clk 0:02:25.9]} 18... Kf8 {[%clk 0:01:34.2]} 19. Nxg5 {[%clk 0:02:11.6]}
19... Ke7 {[%clk 0:01:30.1]} 20. b4 {[%clk 0:02:01.5]} 20... Nxe4 {[%clk
0:01:27.5]} 21. Nxe4 {[%clk 0:01:39.7]} 21... Bxe4 {[%clk 0:01:28.4]} 22. Rfe1
{[%clk 0:01:29.9]} 22... Bf5 {[%clk 0:01:19]} 23. Rac1 {[%clk 0:01:18.7]} 23...
Rd8 {[%clk 0:00:50.8]} 24. Bb3 {[%clk 0:01:13.8]} 24... e4 {[%clk 0:00:41.2]}
25. Rc7+ {[%clk 0:01:11.4]} 25... Rd7 {[%clk 0:00:41.4]} 26. Rxd7+ {[%clk
0:01:08.9]} 26... Kxd7 {[%clk 0:00:42.3]} 27. h3 {[%clk 0:01:05.3]} 27... Ne5
{[%clk 0:00:34]} 28. Re2 {[%clk 0:00:55.6]} 28... h5 {[%clk 0:00:28.3]} 29. Bd5
{[%clk 0:00:51.8]} 29... Nd3 {[%clk 0:00:21.7]} 30. Bxe4 {[%clk 0:00:49]} 30...
Nxb4 {[%clk 0:00:21.6]} 31. a3 {[%clk 0:00:35.4]} 31... Nc6 {[%clk 0:00:18.3]}
32. Bxf5+ {[%clk 0:00:31.1]} 32... gxf5 {[%clk 0:00:19.2]} 33. Re3 {[%clk
0:00:30.1]} 33... Bd4 {[%clk 0:00:17.6]} 34. Rb3 {[%clk 0:00:28.4]} 34... Bc5
{[%clk 0:00:16.4]} 35. Kf1 {[%clk 0:00:28]} 35... Ke6 {[%clk 0:00:16.5]} 36. Rg3
{[%clk 0:00:23.7]} 36... Kf6 {[%clk 0:00:15.9]} 37. Ke2 {[%clk 0:00:22]} 37...
Ne5 {[%clk 0:00:15.6]} 38. Rb3 {[%clk 0:00:21.3]} 38... f4 {[%clk 0:00:14.5]}
39. a4 {[%clk 0:00:20.6]} 39... Nc6 {[%clk 0:00:14.4]} 40. Rd3 {[%clk
0:00:19.3]} 40... Nd4+ {[%clk 0:00:13.9]} 41. Kd2 {[%clk 0:00:18.7]} 41... Ke5
{[%clk 0:00:11.5]} 42. Kc3 {[%clk 0:00:18.4]} 42... Kd5 {[%clk 0:00:11]} 43. Kd2
{[%clk 0:00:18]} 43... Kc4 {[%clk 0:00:10.5]} 44. g3 {[%clk 0:00:17.9]} 44...
Bb4+ {[%clk 0:00:09.9]} 0-1